[Event "Titled Tuesday Blitz February 22 Late 2022"]
[White "Shahaliyev, Ismayil"]
[Black "Romanchuk, Viktor"]
[WhiteFideId "13406388"]
[BlackFideId "14109271"]
[WhiteElo "2105"]
[BlackElo "2242"]
[Result "1-0"]
[Round "05"]
[TimeControl "180+1"]
[Date "2022.02.23"]
[WhiteClock "0:00:30"]
[BlackClock "0:01:12"]

1. d4 {[%clk 0:02:53]}  d5 {[%clk 0:02:59]} 2. Nf3 {[%clk 0:02:53]}  Nf6 {[%clk 0:02:58]} 3. c4 {[%clk 0:02:54]}  c6 {[%clk 0:02:58]} 4. e3 {[%clk 0:02:53]}  e6 {[%clk 0:02:58]} 5. a3 {[%clk 0:02:50]}  Nbd7 {[%clk 0:02:58]} 6. b3 {[%clk 0:02:45]}  Bd6 {[%clk 0:02:56]} 7. Bb2 {[%clk 0:02:46]}  O-O {[%clk 0:02:56]} 8. Bd3 {[%clk 0:02:44]}  b6 {[%clk 0:02:46]} 9. Nc3 {[%clk 0:02:44]}  Bb7 {[%clk 0:02:45]} 10. O-O {[%clk 0:02:43]}  Rc8 {[%clk 0:02:43]} 11. Qe2 {[%clk 0:02:42]}  Qe7 {[%clk 0:02:43]} 12. e4 {[%clk 0:02:41]}  dxe4 {[%clk 0:02:42]} 13. Nxe4 {[%clk 0:02:42]}  Nxe4 {[%clk 0:02:42]} 14. Qxe4 {[%clk 0:02:42]}  Nf6 {[%clk 0:02:42]} 15. Qh4 {[%clk 0:02:42]}  h6 {[%clk 0:02:41]} 16. Rfe1 {[%clk 0:02:41]}  Rfe8 {[%clk 0:02:40]} 17. b4 {[%clk 0:02:30]}  Nd7 {[%clk 0:02:32]} 18. Qe4 {[%clk 0:02:12]}  Nf8 {[%clk 0:02:28]} 19. c5 {[%clk 0:02:12]}  Bb8 {[%clk 0:02:20]} 20. Re3 {[%clk 0:01:30]}  Qd7 {[%clk 0:02:01]} 21. Qg4 {[%clk 0:01:16]}  Qd5 {[%clk 0:01:55]} 22. Be4 {[%clk 0:01:13]}  Qd7 {[%clk 0:01:48]} 23. Bc2 {[%clk 0:01:11]}  Ba6 {[%clk 0:01:44]} 24. Rd1 {[%clk 0:01:07]}  Bc4 {[%clk 0:01:41]} 25. Ne5 {[%clk 0:01:03]}  Bxe5 {[%clk 0:01:38]} 26. dxe5 {[%clk 0:01:04]}  Bd5 {[%clk 0:01:36]} 27. Rg3 {[%clk 0:01:04]}  g6 {[%clk 0:01:31]} 28. Bc1 {[%clk 0:01:04]}  Kg7 {[%clk 0:01:26]} 29. Bxh6+ {[%clk 0:00:45]}  Kxh6 {[%clk 0:01:22]} 30. Qh4+ {[%clk 0:00:46]}  Kg7 {[%clk 0:01:22]} 31. Rh3 {[%clk 0:00:35]}  Nh7 {[%clk 0:01:11]} 32. Qxh7+ {[%clk 0:00:29]}  Kf8 {[%clk 0:01:12]} 33. Qh8+ {[%clk 0:00:30]} 1-0


[Site "https://www.chess.com"]

[Event "Titled Tuesday Blitz February 22 Late 2022"]
[White "Sharafiev, Azat"]
[Black "Terry, Renato"]
[WhiteFideId "4186214"]
[BlackFideId "3803457"]
[WhiteElo "2299"]
[BlackElo "2577"]
[Result "0-1"]
[Round "05"]
[TimeControl "180+1"]
[Date "2022.02.22"]
[WhiteClock "0:00:09"]
[BlackClock "0:00:05"]

1. d4 {[%clk 0:03:00]}  e6 {[%clk 0:02:57]} 2. e4 {[%clk 0:03:00]}  d5 {[%clk 0:02:57]} 3. Nc3 {[%clk 0:03:00]}  Nf6 {[%clk 0:02:56]} 4. e5 {[%clk 0:02:55]}  Nfd7 {[%clk 0:02:56]} 5. f4 {[%clk 0:02:56]}  c5 {[%clk 0:02:57]} 6. Nf3 {[%clk 0:02:56]}  Nc6 {[%clk 0:02:58]} 7. Be3 {[%clk 0:02:56]}  Be7 {[%clk 0:02:59]} 8. Qd2 {[%clk 0:02:50]}  O-O {[%clk 0:02:59]} 9. h4 {[%clk 0:02:46]}  a6 {[%clk 0:02:58]} 10. Bd3 {[%clk 0:02:43]}  Re8 {[%clk 0:02:21]} 11. O-O-O {[%clk 0:02:31]}  c4 {[%clk 0:01:35]} 12. Be2 {[%clk 0:02:23]}  b5 {[%clk 0:01:33]} 13. g4 {[%clk 0:02:13]}  b4 {[%clk 0:01:32]} 14. Nb1 {[%clk 0:02:04]}  c3 {[%clk 0:01:32]} 15. Qd3 {[%clk 0:02:02]}  Qa5 {[%clk 0:01:31]} 16. bxc3 {[%clk 0:01:55]}  bxc3 {[%clk 0:01:02]} 17. Qxc3 {[%clk 0:01:55]}  Nb4 {[%clk 0:01:03]} 18. Kd2 {[%clk 0:01:30]}  Bb7 {[%clk 0:01:03]} 19. Qa3 {[%clk 0:01:28]}  Qc7 {[%clk 0:00:54]} 20. Qb2 {[%clk 0:01:27]}  Rab8 {[%clk 0:00:42]} 21. c3 {[%clk 0:01:27]}  Ba8 {[%clk 0:00:42]} 22. a3 {[%clk 0:01:14]}  Nd3 {[%clk 0:00:20]} 23. Qc2 {[%clk 0:01:14]}  Rb2 {[%clk 0:00:20]} 24. Bxd3 {[%clk 0:01:14]}  Rxc2+ {[%clk 0:00:20]} 25. Bxc2 {[%clk 0:01:15]}  Nb6 {[%clk 0:00:20]} 26. Ke2 {[%clk 0:01:11]}  Nc4 {[%clk 0:00:20]} 27. Bc1 {[%clk 0:01:11]}  f6 {[%clk 0:00:17]} 28. Rdf1 {[%clk 0:00:51]}  Bc6 {[%clk 0:00:17]} 29. Kf2 {[%clk 0:00:49]}  fxe5 {[%clk 0:00:15]} 30. fxe5 {[%clk 0:00:49]}  Rf8 {[%clk 0:00:15]} 31. Kg2 {[%clk 0:00:48]}  Bb5 {[%clk 0:00:16]} 32. Rf2 {[%clk 0:00:45]}  Qd7 {[%clk 0:00:14]} 33. h5 {[%clk 0:00:40]}  Nb6 {[%clk 0:00:14]} 34. h6 {[%clk 0:00:39]}  g6 {[%clk 0:00:14]} 35. Rh2 {[%clk 0:00:33]}  Ba4 {[%clk 0:00:14]} 36. Bxa4 {[%clk 0:00:27]}  Qxa4 {[%clk 0:00:12]} 37. Kg3 {[%clk 0:00:27]}  Qd1 {[%clk 0:00:12]} 38. Bg5 {[%clk 0:00:18]}  Rxf3+ {[%clk 0:00:05]} 39. Rxf3 {[%clk 0:00:18]}  Bxg5 {[%clk 0:00:05]} 40. Rhf2 {[%clk 0:00:17]}  Bxh6 {[%clk 0:00:06]} 41. Nd2 {[%clk 0:00:15]}  Bxd2 {[%clk 0:00:03]} 42. Rf8+ {[%clk 0:00:15]}  Kg7 {[%clk 0:00:04]} 43. R2f7+ {[%clk 0:00:13]}  Kh6 {[%clk 0:00:04]} 44. Rh8 {[%clk 0:00:13]}  Kg5 {[%clk 0:00:04]} 45. Rhxh7 {[%clk 0:00:13]}  Qg1+ {[%clk 0:00:03]} 46. Kf3 {[%clk 0:00:11]}  Qe3+ {[%clk 0:00:04]} 47. Kg2 {[%clk 0:00:11]}  Qe2+ {[%clk 0:00:04]} 48. Rf2 {[%clk 0:00:10]}  Qd3 {[%clk 0:00:04]} 49. Rh3 {[%clk 0:00:09]}  Qe4+ {[%clk 0:00:04]} 50. Kg3 {[%clk 0:00:09]}  Bf4+ {[%clk 0:00:04]} 51. Rxf4 {[%clk 0:00:07]}  Qxf4+ {[%clk 0:00:05]} 52. Kg2 {[%clk 0:00:08]}  Nc4 {[%clk 0:00:05]} 53. Rg3 {[%clk 0:00:09]}  Ne3+ {[%clk 0:00:05]} 54. Kh3 {[%clk 0:00:09]}  Qf2 {[%clk 0:00:05]} 0-1


[Site "https://www.chess.com"]

[Event "Titled Tuesday Blitz February 22 Late 2022"]
[White "Sliwicki, Damian"]
[Black "Antonio, Jorge Carlos"]
[WhiteFideId "1127128"]
[BlackFideId "113190"]
[WhiteElo "2084"]
[BlackElo "2247"]
[Result "1-0"]
[Round "05"]
[TimeControl "180+1"]
[Date "2022.02.23"]
[WhiteClock "0:00:11"]
[BlackClock "0:00:05"]

1. e4 {[%clk 0:03:00]}  c5 {[%clk 0:02:59]} 2. Nf3 {[%clk 0:03:00]}  e6 {[%clk 0:02:59]} 3. d4 {[%clk 0:03:01]}  cxd4 {[%clk 0:02:57]} 4. Nxd4 {[%clk 0:03:02]}  Nc6 {[%clk 0:02:56]} 5. Nc3 {[%clk 0:03:01]}  a6 {[%clk 0:02:56]} 6. g3 {[%clk 0:02:53]}  Nf6 {[%clk 0:02:55]} 7. Bg2 {[%clk 0:02:53]}  Bb4 {[%clk 0:02:55]} 8. O-O {[%clk 0:02:51]}  O-O {[%clk 0:02:54]} 9. Nxc6 {[%clk 0:02:33]}  bxc6 {[%clk 0:02:52]} 10. e5 {[%clk 0:02:32]}  Nd5 {[%clk 0:02:51]} 11. Ne4 {[%clk 0:02:30]}  f5 {[%clk 0:02:44]} 12. exf6 {[%clk 0:02:23]}  Nxf6 {[%clk 0:02:43]} 13. Bg5 {[%clk 0:02:23]}  Be7 {[%clk 0:02:38]} 14. Nxf6+ {[%clk 0:02:15]}  Bxf6 {[%clk 0:02:36]} 15. Bxf6 {[%clk 0:02:13]}  Qxf6 {[%clk 0:02:34]} 16. Qd6 {[%clk 0:02:04]}  Qxb2 {[%clk 0:02:21]} 17. c4 {[%clk 0:01:44]}  Rf7 {[%clk 0:02:14]} 18. c5 {[%clk 0:01:37]}  a5 {[%clk 0:02:02]} 19. Rab1 {[%clk 0:01:26]}  Qxa2 {[%clk 0:01:47]} 20. Qd4 {[%clk 0:00:58]}  Ba6 {[%clk 0:01:35]} 21. Rb2 {[%clk 0:00:58]}  Qc4 {[%clk 0:01:27]} 22. Qd6 {[%clk 0:00:56]}  Qc3 {[%clk 0:01:20]} 23. Rfb1 {[%clk 0:00:50]}  Bb5 {[%clk 0:01:15]} 24. Rxb5 {[%clk 0:00:48]}  cxb5 {[%clk 0:01:07]} 25. Bxa8 {[%clk 0:00:49]}  Qc2 {[%clk 0:01:02]} 26. Rf1 {[%clk 0:00:42]}  b4 {[%clk 0:00:59]} 27. Qb6 {[%clk 0:00:37]}  Qa2 {[%clk 0:00:53]} 28. Qd8+ {[%clk 0:00:33]}  Rf8 {[%clk 0:00:52]} 29. Qxd7 {[%clk 0:00:26]}  a4 {[%clk 0:00:51]} 30. c6 {[%clk 0:00:18]}  Qc2 {[%clk 0:00:47]} 31. c7 {[%clk 0:00:17]}  a3 {[%clk 0:00:39]} 32. Bc6 {[%clk 0:00:14]}  b3 {[%clk 0:00:32]} 33. Qxe6+ {[%clk 0:00:14]}  Kh8 {[%clk 0:00:31]} 34. c8=Q {[%clk 0:00:14]}  Qc5 {[%clk 0:00:19]} 35. Qcd7 {[%clk 0:00:11]}  a2 {[%clk 0:00:16]} 36. Qee7 {[%clk 0:00:12]}  Qxe7 {[%clk 0:00:15]} 37. Qxe7 {[%clk 0:00:13]}  Rb8 {[%clk 0:00:14]} 38. Qe5 {[%clk 0:00:11]}  Rd8 {[%clk 0:00:08]} 39. Qb2 {[%clk 0:00:11]}  Rb8 {[%clk 0:00:08]} 40. Bd5 {[%clk 0:00:11]}  h6 {[%clk 0:00:08]} 41. Kg2 {[%clk 0:00:11]}  Kh7 {[%clk 0:00:07]} 42. Re1 {[%clk 0:00:12]}  Kg6 {[%clk 0:00:07]} 43. Re7 {[%clk 0:00:11]}  Kg5 {[%clk 0:00:05]} 44. Rxg7+ {[%clk 0:00:11]}  Kf5 {[%clk 0:00:05]} 45. g4+ {[%clk 0:00:11]}  Kf4 {[%clk 0:00:05]} 46. Qd4# {[%clk 0:00:11]} 1-0


[Site "https://www.chess.com"]

[Event "Titled Tuesday Blitz February 22 Late 2022"]
[White "Sviridov, Valery"]
[Black "Bryakin, Mikhail"]
[WhiteFideId "4120680"]
[BlackFideId "4165314"]
[WhiteElo "2454"]
[BlackElo "2421"]
[Result "1-0"]
[Round "05"]
[TimeControl "180+1"]
[Date "2022.02.22"]
[WhiteClock "0:01:04"]
[BlackClock "0:00:13"]

1. d4 {[%clk 0:03:00]}  Nf6 {[%clk 0:02:56]} 2. Nf3 {[%clk 0:03:00]}  c5 {[%clk 0:02:55]} 3. e3 {[%clk 0:03:00]}  e6 {[%clk 0:02:54]} 4. c3 {[%clk 0:03:00]}  b6 {[%clk 0:02:55]} 5. Nbd2 {[%clk 0:03:00]}  Bb7 {[%clk 0:02:55]} 6. Bd3 {[%clk 0:03:00]}  Be7 {[%clk 0:02:55]} 7. O-O {[%clk 0:03:00]}  d5 {[%clk 0:02:56]} 8. Ne5 {[%clk 0:02:57]}  Nbd7 {[%clk 0:02:54]} 9. f4 {[%clk 0:02:57]}  O-O {[%clk 0:02:52]} 10. Qf3 {[%clk 0:02:56]}  Ne8 {[%clk 0:02:49]} 11. g4 {[%clk 0:02:40]}  f5 {[%clk 0:02:37]} 12. gxf5 {[%clk 0:02:37]}  exf5 {[%clk 0:02:38]} 13. Kh1 {[%clk 0:02:37]}  Nd6 {[%clk 0:02:34]} 14. Qh3 {[%clk 0:02:30]}  c4 {[%clk 0:02:11]} 15. Be2 {[%clk 0:01:55]}  Nf6 {[%clk 0:02:07]} 16. Bf3 {[%clk 0:01:53]}  b5 {[%clk 0:02:00]} 17. Rg1 {[%clk 0:01:53]}  Nde4 {[%clk 0:01:51]} 18. Qg2 {[%clk 0:01:50]}  Ne8 {[%clk 0:01:47]} 19. Nxe4 {[%clk 0:01:51]}  dxe4 {[%clk 0:01:47]} 20. Bh5 {[%clk 0:01:51]}  Bf6 {[%clk 0:01:45]} 21. Bd2 {[%clk 0:01:48]}  Bd5 {[%clk 0:01:42]} 22. Be1 {[%clk 0:01:44]}  Qe7 {[%clk 0:01:37]} 23. Qh3 {[%clk 0:01:42]}  Qe6 {[%clk 0:01:07]} 24. Bh4 {[%clk 0:01:37]}  Bxh4 {[%clk 0:00:57]} 25. Qxh4 {[%clk 0:01:37]}  Qf6 {[%clk 0:00:51]} 26. Qh3 {[%clk 0:01:23]}  Nd6 {[%clk 0:00:49]} 27. Rg3 {[%clk 0:01:22]}  Rad8 {[%clk 0:00:41]} 28. Rag1 {[%clk 0:01:22]}  a5 {[%clk 0:00:23]} 29. Qg2 {[%clk 0:01:22]}  Kh8 {[%clk 0:00:16]} 30. Rxg7 {[%clk 0:01:20]}  Rg8 {[%clk 0:00:17]} 31. Rg5 {[%clk 0:01:14]}  b4 {[%clk 0:00:13]} 32. Qh3 {[%clk 0:01:07]}  Rdf8 {[%clk 0:00:13]} 33. Ng6+ {[%clk 0:01:04]} 1-0


[Site "https://www.chess.com"]

[Event "Titled Tuesday Blitz February 22 Late 2022"]
[White "Tan, Jun Ying"]
[Black "Lenderman, Aleksandr"]
[WhiteFideId "5710413"]
[BlackFideId "2021285"]
[WhiteElo "1827"]
[BlackElo "2651"]
[Result "0-1"]
[Round "05"]
[TimeControl "180+1"]
[Date "2022.02.22"]
[WhiteClock "0:00:14"]
[BlackClock "0:00:08"]

1. d4 {[%clk 0:03:00]}  d5 {[%clk 0:01:30]} 2. c4 {[%clk 0:02:59]}  e6 {[%clk 0:01:29]} 3. Nc3 {[%clk 0:02:56]}  a6 {[%clk 0:01:29]} 4. cxd5 {[%clk 0:02:56]}  exd5 {[%clk 0:01:29]} 5. Bf4 {[%clk 0:02:56]}  Nf6 {[%clk 0:01:25]} 6. e3 {[%clk 0:02:54]}  Bd6 {[%clk 0:01:26]} 7. Bg5 {[%clk 0:02:53]}  c6 {[%clk 0:01:25]} 8. Bd3 {[%clk 0:02:52]}  O-O {[%clk 0:01:19]} 9. Nf3 {[%clk 0:02:46]}  Bg4 {[%clk 0:01:13]} 10. O-O {[%clk 0:02:45]}  Nbd7 {[%clk 0:01:12]} 11. Qc2 {[%clk 0:02:18]}  h6 {[%clk 0:01:08]} 12. Bh4 {[%clk 0:02:18]}  Qc7 {[%clk 0:00:55]} 13. Kh1 {[%clk 0:02:02]}  Rfe8 {[%clk 0:00:54]} 14. h3 {[%clk 0:01:52]}  Be6 {[%clk 0:00:51]} 15. e4 {[%clk 0:01:19]}  dxe4 {[%clk 0:00:46]} 16. Nxe4 {[%clk 0:01:20]}  Nxe4 {[%clk 0:00:46]} 17. Bxe4 {[%clk 0:01:21]}  Nb6 {[%clk 0:00:46]} 18. g4 {[%clk 0:01:03]}  Bd5 {[%clk 0:00:44]} 19. Bxd5 {[%clk 0:01:01]}  Nxd5 {[%clk 0:00:45]} 20. g5 {[%clk 0:01:00]}  Qd7 {[%clk 0:00:44]} 21. Ng1 {[%clk 0:00:54]}  hxg5 {[%clk 0:00:31]} 22. Bxg5 {[%clk 0:00:54]}  f6 {[%clk 0:00:32]} 23. Bh4 {[%clk 0:00:53]}  Qf7 {[%clk 0:00:32]} 24. Qd3 {[%clk 0:00:47]}  Qh5 {[%clk 0:00:31]} 25. Bg3 {[%clk 0:00:46]}  Bxg3 {[%clk 0:00:31]} 26. Qxg3 {[%clk 0:00:44]}  Re4 {[%clk 0:00:31]} 27. Rad1 {[%clk 0:00:41]}  Rae8 {[%clk 0:00:30]} 28. Nf3 {[%clk 0:00:35]}  R8e7 {[%clk 0:00:27]} 29. Kh2 {[%clk 0:00:32]}  Kh7 {[%clk 0:00:26]} 30. Rg1 {[%clk 0:00:28]}  Re2 {[%clk 0:00:23]} 31. Rd2 {[%clk 0:00:20]}  Rxd2 {[%clk 0:00:20]} 32. Nxd2 {[%clk 0:00:21]}  g5 {[%clk 0:00:18]} 33. Nf3 {[%clk 0:00:18]}  Nf4 {[%clk 0:00:19]} 34. Re1 {[%clk 0:00:16]}  Rxe1 {[%clk 0:00:18]} 35. Nxe1 {[%clk 0:00:17]}  Qe2 {[%clk 0:00:18]} 36. Ng2 {[%clk 0:00:17]}  Nxg2 {[%clk 0:00:14]} 37. Kxg2 {[%clk 0:00:17]}  Qe4+ {[%clk 0:00:14]} 38. Kh2 {[%clk 0:00:16]}  Qxd4 {[%clk 0:00:12]} 39. Qc7+ {[%clk 0:00:17]}  Kg6 {[%clk 0:00:12]} 40. Qxb7 {[%clk 0:00:16]}  Qxf2+ {[%clk 0:00:12]} 41. Kh1 {[%clk 0:00:17]}  Qf1+ {[%clk 0:00:12]} 42. Kh2 {[%clk 0:00:17]}  Qf2+ {[%clk 0:00:13]} 43. Kh1 {[%clk 0:00:18]}  Qf3+ {[%clk 0:00:14]} 44. Kh2 {[%clk 0:00:18]}  a5 {[%clk 0:00:15]} 45. Qb8 {[%clk 0:00:16]}  Qf2+ {[%clk 0:00:14]} 46. Kh1 {[%clk 0:00:17]}  Qf1+ {[%clk 0:00:15]} 47. Kh2 {[%clk 0:00:17]}  Qf2+ {[%clk 0:00:14]} 48. Kh1 {[%clk 0:00:17]}  Qe1+ {[%clk 0:00:14]} 49. Kg2 {[%clk 0:00:16]}  Qe2+ {[%clk 0:00:15]} 50. Kg1 {[%clk 0:00:16]}  Qe3+ {[%clk 0:00:15]} 51. Kg2 {[%clk 0:00:16]}  Qd2+ {[%clk 0:00:16]} 52. Kg1 {[%clk 0:00:15]}  Qd4+ {[%clk 0:00:16]} 53. Kg2 {[%clk 0:00:15]}  Qe4+ {[%clk 0:00:17]} 54. Kg1 {[%clk 0:00:15]}  Kf5 {[%clk 0:00:13]} 55. Qc8+ {[%clk 0:00:15]}  Kf4 {[%clk 0:00:13]} 56. Qc7+ {[%clk 0:00:15]}  Kf3 {[%clk 0:00:12]} 57. Qxa5 {[%clk 0:00:14]}  Qd4+ {[%clk 0:00:07]} 58. Kh1 {[%clk 0:00:14]}  Qd1+ {[%clk 0:00:07]} 59. Kh2 {[%clk 0:00:14]}  Qe2+ {[%clk 0:00:07]} 60. Kh1 {[%clk 0:00:14]}  Qg2# {[%clk 0:00:08]} 0-1


[Site "https://www.chess.com"]

[Event "Titled Tuesday Blitz February 22 Late 2022"]
[White "Van den Dikkenberg, Erik"]
[Black "Janaszak, Dawid"]
[WhiteFideId "1005880"]
[BlackFideId "1119206"]
[WhiteElo "2118"]
[BlackElo "2199"]
[Result "1-0"]
[Round "05"]
[TimeControl "180+1"]
[Date "2022.02.23"]
[WhiteClock "0:00:48"]
[BlackClock "0:01:26"]

1. e4 {[%clk 0:03:00]}  d5 {[%clk 0:02:58]} 2. exd5 {[%clk 0:03:00]}  Nf6 {[%clk 0:02:57]} 3. d4 {[%clk 0:02:59]}  Bg4 {[%clk 0:02:55]} 4. Be2 {[%clk 0:02:58]}  Bxe2 {[%clk 0:02:55]} 5. Qxe2 {[%clk 0:02:58]}  Nxd5 {[%clk 0:02:52]} 6. Nf3 {[%clk 0:02:57]}  c6 {[%clk 0:02:48]} 7. O-O {[%clk 0:02:56]}  e6 {[%clk 0:02:43]} 8. c4 {[%clk 0:02:56]}  Nf6 {[%clk 0:02:42]} 9. Nc3 {[%clk 0:02:55]}  Be7 {[%clk 0:02:42]} 10. Bg5 {[%clk 0:02:54]}  O-O {[%clk 0:02:41]} 11. Rad1 {[%clk 0:02:53]}  Nbd7 {[%clk 0:02:41]} 12. Ne5 {[%clk 0:02:51]}  Ne8 {[%clk 0:02:31]} 13. Bxe7 {[%clk 0:02:48]}  Qxe7 {[%clk 0:02:32]} 14. Rfe1 {[%clk 0:02:40]}  Nef6 {[%clk 0:02:30]} 15. Nxd7 {[%clk 0:02:18]}  Qxd7 {[%clk 0:02:31]} 16. Ne4 {[%clk 0:02:15]}  Nxe4 {[%clk 0:02:29]} 17. Qxe4 {[%clk 0:02:15]}  Rad8 {[%clk 0:02:29]} 18. h3 {[%clk 0:02:11]}  g6 {[%clk 0:02:26]} 19. Rd3 {[%clk 0:01:42]}  Qd6 {[%clk 0:02:22]} 20. Red1 {[%clk 0:01:38]}  Rd7 {[%clk 0:02:21]} 21. b3 {[%clk 0:01:33]}  Rfd8 {[%clk 0:02:20]} 22. f4 {[%clk 0:01:24]}  Qa3 {[%clk 0:02:16]} 23. R3d2 {[%clk 0:01:20]}  Qa5 {[%clk 0:02:12]} 24. Kh1 {[%clk 0:01:17]}  h5 {[%clk 0:02:10]} 25. Kh2 {[%clk 0:01:16]}  a6 {[%clk 0:02:07]} 26. a4 {[%clk 0:01:11]}  Qb6 {[%clk 0:02:06]} 27. Rd3 {[%clk 0:01:11]}  Qb4 {[%clk 0:02:03]} 28. Kh1 {[%clk 0:01:10]}  Qb6 {[%clk 0:01:59]} 29. Kh2 {[%clk 0:01:10]}  Qc7 {[%clk 0:01:59]} 30. Kh1 {[%clk 0:01:10]}  b5 {[%clk 0:01:57]} 31. axb5 {[%clk 0:01:07]}  cxb5 {[%clk 0:01:55]} 32. d5 {[%clk 0:01:04]}  exd5 {[%clk 0:01:51]} 33. Rxd5 {[%clk 0:01:01]}  Rxd5 {[%clk 0:01:47]} 34. Rxd5 {[%clk 0:01:00]}  Rb8 {[%clk 0:01:38]} 35. c5 {[%clk 0:00:58]}  Qc6 {[%clk 0:01:33]} 36. Rd8+ {[%clk 0:00:56]}  Rxd8 {[%clk 0:01:30]} 37. Qxc6 {[%clk 0:00:56]}  Rd3 {[%clk 0:01:29]} 38. b4 {[%clk 0:00:51]}  Ra3 {[%clk 0:01:28]} 39. Qb6 {[%clk 0:00:50]}  h4 {[%clk 0:01:26]} 40. c6 {[%clk 0:00:48]}  Rc3 {[%clk 0:01:26]} 41. c7 {[%clk 0:00:48]} 1-0


[Site "https://www.chess.com"]

[Event "Titled Tuesday Blitz February 22 Late 2022"]
[White "Vifleemskaia, Svetlana"]
[Black "Villegas, Pierre"]
[WhiteFideId "4129490"]
[BlackFideId "654183"]
[WhiteElo "1901"]
[BlackElo "2410"]
[Result "1-0"]
[Round "05"]
[TimeControl "180+1"]
[Date "2022.02.23"]
[WhiteClock "0:00:12"]
[BlackClock "0:00:06"]

1. d4 {[%clk 0:00:46]}  d5 {[%clk 0:02:58]} 2. c4 {[%clk 0:00:46]}  e6 {[%clk 0:02:59]} 3. Nc3 {[%clk 0:00:45]}  a6 {[%clk 0:02:59]} 4. cxd5 {[%clk 0:00:45]}  exd5 {[%clk 0:03:00]} 5. Qc2 {[%clk 0:00:45]}  c6 {[%clk 0:02:55]} 6. h3 {[%clk 0:00:45]}  Bd6 {[%clk 0:02:53]} 7. Nf3 {[%clk 0:00:43]}  Ne7 {[%clk 0:02:52]} 8. Bg5 {[%clk 0:00:42]}  f6 {[%clk 0:02:52]} 9. Bd2 {[%clk 0:00:41]}  Bf5 {[%clk 0:02:52]} 10. Qb3 {[%clk 0:00:39]}  Ra7 {[%clk 0:02:38]} 11. Nh4 {[%clk 0:00:39]}  Be6 {[%clk 0:02:32]} 12. e3 {[%clk 0:00:37]}  g5 {[%clk 0:02:09]} 13. Nf3 {[%clk 0:00:35]}  Bf5 {[%clk 0:02:09]} 14. g4 {[%clk 0:00:33]}  Bg6 {[%clk 0:02:08]} 15. h4 {[%clk 0:00:33]}  gxh4 {[%clk 0:01:18]} 16. Nxh4 {[%clk 0:00:32]}  Bf7 {[%clk 0:01:16]} 17. Bd3 {[%clk 0:00:31]}  Nd7 {[%clk 0:01:15]} 18. Qc2 {[%clk 0:00:30]}  h6 {[%clk 0:00:52]} 19. Nf5 {[%clk 0:00:29]}  Nxf5 {[%clk 0:00:50]} 20. Bxf5 {[%clk 0:00:30]}  c5 {[%clk 0:00:40]} 21. f4 {[%clk 0:00:28]}  cxd4 {[%clk 0:00:39]} 22. exd4 {[%clk 0:00:27]}  Qe7+ {[%clk 0:00:36]} 23. Kf2 {[%clk 0:00:27]}  Kf8 {[%clk 0:00:36]} 24. Rae1 {[%clk 0:00:27]}  Qd8 {[%clk 0:00:36]} 25. g5 {[%clk 0:00:20]}  fxg5 {[%clk 0:00:24]} 26. fxg5 {[%clk 0:00:20]}  b5 {[%clk 0:00:25]} 27. gxh6 {[%clk 0:00:18]}  Qf6 {[%clk 0:00:25]} 28. Ref1 {[%clk 0:00:16]}  b4 {[%clk 0:00:23]} 29. Ne2 {[%clk 0:00:13]}  Rc7 {[%clk 0:00:22]} 30. Qd3 {[%clk 0:00:13]}  Rc8 {[%clk 0:00:05]} 31. Ke1 {[%clk 0:00:13]}  Re8 {[%clk 0:00:06]} 32. Bxd7 {[%clk 0:00:12]} 1-0


[Site "https://www.chess.com"]

[Event "Titled Tuesday Blitz February 22 Late 2022"]
[White "Vine, Elzbieta"]
[Black "Stanisz, Patryk"]
[WhiteFideId "1119320"]
[BlackFideId "1123106"]
[WhiteElo "1887"]
[BlackElo "1876"]
[Result "0-1"]
[Round "05"]
[TimeControl "180+1"]
[Date "2022.02.23"]
[WhiteClock "0:00:02"]
[BlackClock "0:00:09"]

1. e4 {[%clk 0:03:00]}  c5 {[%clk 0:02:56]} 2. Nf3 {[%clk 0:02:59]}  Nc6 {[%clk 0:02:55]} 3. d4 {[%clk 0:02:58]}  cxd4 {[%clk 0:02:56]} 4. Nxd4 {[%clk 0:02:58]}  Nf6 {[%clk 0:02:56]} 5. Nc3 {[%clk 0:02:57]}  e5 {[%clk 0:02:57]} 6. Ndb5 {[%clk 0:02:57]}  d6 {[%clk 0:02:57]} 7. Bg5 {[%clk 0:02:53]}  a6 {[%clk 0:02:58]} 8. Na3 {[%clk 0:02:53]}  b5 {[%clk 0:02:58]} 9. Nd5 {[%clk 0:02:52]}  Qa5+ {[%clk 0:02:58]} 10. c3 {[%clk 0:02:46]}  Nxe4 {[%clk 0:02:57]} 11. Be3 {[%clk 0:02:21]}  Rb8 {[%clk 0:02:57]} 12. Bd3 {[%clk 0:02:15]}  f5 {[%clk 0:02:09]} 13. Bxe4 {[%clk 0:01:49]}  fxe4 {[%clk 0:02:08]} 14. Qh5+ {[%clk 0:01:42]}  g6 {[%clk 0:02:00]} 15. Nf6+ {[%clk 0:01:40]}  Kf7 {[%clk 0:01:56]} 16. Qh4 {[%clk 0:01:34]}  Qd8 {[%clk 0:01:38]} 17. Qxe4 {[%clk 0:01:27]}  Qxf6 {[%clk 0:01:03]} 18. Qxc6 {[%clk 0:01:26]}  Bb7 {[%clk 0:01:00]} 19. Qc7+ {[%clk 0:01:19]}  Be7 {[%clk 0:01:01]} 20. O-O {[%clk 0:01:13]}  Rhc8 {[%clk 0:01:00]} 21. Qa5 {[%clk 0:01:10]}  Qh4 {[%clk 0:00:51]} 22. Nc2 {[%clk 0:00:58]}  Qe4 {[%clk 0:00:48]} 23. Ne1 {[%clk 0:00:54]}  Kg7 {[%clk 0:00:32]} 24. Ba7 {[%clk 0:00:40]}  Ra8 {[%clk 0:00:29]} 25. Qb6 {[%clk 0:00:39]}  Rc6 {[%clk 0:00:13]} 26. Qe3 {[%clk 0:00:37]}  Qxe3 {[%clk 0:00:13]} 27. Bxe3 {[%clk 0:00:36]}  Rf8 {[%clk 0:00:14]} 28. Rd1 {[%clk 0:00:34]}  Rcc8 {[%clk 0:00:13]} 29. Nd3 {[%clk 0:00:31]}  Be4 {[%clk 0:00:13]} 30. f3 {[%clk 0:00:29]}  Bb7 {[%clk 0:00:10]} 31. Nb4 {[%clk 0:00:27]}  Kf7 {[%clk 0:00:10]} 32. Nd5 {[%clk 0:00:26]}  Bxd5 {[%clk 0:00:10]} 33. Rxd5 {[%clk 0:00:25]}  Ke6 {[%clk 0:00:11]} 34. Rfd1 {[%clk 0:00:23]}  Rc6 {[%clk 0:00:11]} 35. Bh6 {[%clk 0:00:22]}  Rfc8 {[%clk 0:00:11]} 36. Kf1 {[%clk 0:00:20]}  Rc5 {[%clk 0:00:10]} 37. Rxc5 {[%clk 0:00:17]}  Rxc5 {[%clk 0:00:10]} 38. Ke2 {[%clk 0:00:15]}  Rc4 {[%clk 0:00:08]} 39. Be3 {[%clk 0:00:13]}  Rc6 {[%clk 0:00:07]} 40. Rd2 {[%clk 0:00:12]}  a5 {[%clk 0:00:07]} 41. Rd1 {[%clk 0:00:10]}  d5 {[%clk 0:00:08]} 42. Rd2 {[%clk 0:00:07]}  b4 {[%clk 0:00:08]} 43. cxb4 {[%clk 0:00:06]}  Bxb4 {[%clk 0:00:09]} 44. Rd1 {[%clk 0:00:03]}  Rc2+ {[%clk 0:00:09]} 45. Bd2 {[%clk 0:00:02]}  Rxb2 {[%clk 0:00:09]} 0-1


[Site "https://www.chess.com"]